[Event "World Team-ch Women 2019"]
[Site "Astana"]
[Date "2019.03.09"]
[Round "5.14"]
[White "Wafa, Shrook"]
[Black "Padmini, Rout"]
[Result "0-1"]
[ECO "C67"]
[WhiteElo "2166"]
[BlackElo "2332"]
[Annotator "NA"]
[PlyCount "106"]
[EventDate "2019.02.05"]
[EventType "team-tourn"]
[EventCountry "KAZ"]
[SourceTitle "playchess.com"]
[Source "ChessBase"]
[SourceQuality "1"]
[WhiteTeam "Egypt"]
[BlackTeam "India"]
[WhiteTeamCountry "EGY"]
[BlackTeamCountry "IND"]
[TimeControl "40/5400+30:1800+30"]

1. e4 {[%emt 0:00:00]} e5 {[%emt 0:00:00]} 2. Nf3 {[%emt 0:00:00]} Nc6 {[%emt 0:00:00]} 3. Bb5 {[%emt 0:00:00]} Nf6 {[%emt 0:00:07]} 4. O-O {[%emt 0:00:17]} Nxe4 {[%emt 0:00:10]} 5. d4 {[%emt 0:00:23]} Nd6 {[%emt 0:00:18]} 6. Bxc6 {[%emt 0:00:55]} dxc6 {[%emt 0:00:02]} 7. dxe5 {[%emt 0:00:20]} Nf5 {[%emt 0:00:06]} 8. Qxd8+ {[%emt 0:00:11]} Kxd8 {[%emt 0:00:07]} 9. Nc3 {[%emt 0:00:16]} Bd7 {[%emt 0:01:58]} 10. Bf4 {[%emt 0:03:24] C67: Ruy Lopez: Berlin Defence: 4 0-0 Nxe4} (10. h3 h6 11. b3 b6 12. Bb2 Kc8 13. Rfd1 c5 14. Nd5 a5 15. a4 Ne7 16. c4 Bf5 17. Ne3 Be6 18. Rd2 Kb7 19. Rad1 {0-1 (43) Zhigalko,S (2648)-Cheparinov,I (2703) Kocaeli 2017}) 10... h6 {[%emt 0:01:18]} 11. Rad1 {[%emt 0:04:20]} Kc8 {[%emt 0:01:12]} 12. Ne4 {[%emt 0:06:59]} b6 {[%emt 0:04:13]} 13. c4 {[%emt 0:03:25]} Be6 $146 {[%emt 0:03:24]} ({Predecessor:} 13... c5 14. h3 Ne7 15. Bd2 Be6 16. b3 Ng6 17. Rfe1 a5 {½-½ (27) Melia,S (2318)-Karavade,E (2348) Istanbul 2005}) 14. b3 {[%emt 0:00:42]} Kb7 {[%emt 0:04:55]} 15. h3 {[%emt 0:03:23]} c5 {[%emt 0:04:47]} 16. g4 {[%emt 0:05:08]} Ne7 {[%emt 0:00:12]} 17. Kg2 {[%emt 0:02:44]} Nc6 {[%emt 0:05:01]} 18. Bc1 {[%emt 0:15:44]} Be7 {[%emt 0:02:09]} 19. Bb2 {[%emt 0:02:31]} Rhd8 {[%emt 0:02:48]} 20. Ng3 {[%emt 0:03:21]} Nb4 {[%emt 0:02:53]} 21. a4 {[%emt 0:01:25]} Nd3 {[%emt 0:09:52]} 22. Bc3 {[%emt 0:03:54]} Nf4+ {[%emt 0:00:32]} 23. Kh2 {[%emt 0:00:10]} a6 {[%emt 0:01:51]} 24. Nf5 {[%emt 0:02:37]} Bf8 {[%emt 0:00:20]} 25. Rd2 {[%emt 0:06:50]} b5 {[%emt 0:04:18]} 26. Rfd1 {[%emt 0:13:39]} Rxd2 {[%emt 0:04:46]} 27. Bxd2 $17 {[%emt 0:02:21]} Rd8 {[%emt 0:08:29]} 28. Nd6+ {[%emt 0:01:42]} cxd6 {[%emt 0:00:33]} 29. Bxf4 {[%emt 0:00:08]} d5 {[%emt 0:00:16]} 30. axb5 {[%emt 0:01:20]} axb5 {[%emt 0:00:06]} 31. cxb5 {[%emt 0:03:06]} Ra8 {[%emt 0:04:15]} 32. b4 {[%emt 0:05:19]} c4 {[%emt 0:01:17]} 33. Rb1 {[%emt 0:02:31]} Ra4 {[%emt 0:04:37]} 34. Bd2 {[%emt 0:00:55]} g5 {[%emt 0:01:31]} 35. Kg2 {[%emt 0:02:51]} Bd7 {[%emt 0:05:08]} 36. Nd4 {[%emt 0:02:10]} Ra3 {[%emt 0:00:22]} 37. Be3 {[%emt 0:01:15]} Bg7 {[%emt 0:00:54]} 38. Nc6 {[%emt 0:00:24]} Bxc6 {[%emt 0:02:22]} 39. bxc6+ {[%emt 0:00:05]} Kxc6 {[%emt 0:00:51]} 40. b5+ {[%emt 0:00:00]} Kd7 {[%emt 0:00:00]} 41. b6 {[%emt 0:02:45]} Bxe5 {[%emt 0:04:31]} 42. Rb5 {[%emt 0:01:31]} Kc6 {[%emt 0:03:59]} 43. Rc5+ {[%emt 0:00:25]} Kd6 {[%emt 0:00:09]} 44. Rc7 {[%emt 0:01:22]} Rb3 {[%emt 0:00:09]} 45. Bc5+ {[%emt 0:08:26]} Ke6 {[%emt 0:00:12]} 46. Re7+ {[%emt 0:00:37]} Kf6 {[%emt 0:00:09]} 47. Rc7 {[%emt 0:07:04]} c3 {[%emt 0:02:23]} 48. Rc6+ {[%emt 0:04:51]} Kg7 {[%emt 0:00:25]} 49. Rc8 {[%emt 0:01:50]} d4 {[%emt 0:02:49]} 50. Bf8+ {[%emt 0:03:14]} Kh7 {[%emt 0:00:37]} 51. Rc6 {[%emt 0:04:52]} d3 {[%emt 0:00:30]} 52. Rxh6+ {[%emt 0:00:23]} Kg8 {[%emt 0:00:05]} 53. Bd6 {[%emt 0:00:24]} Bg7 {[%emt 0:00:24]} 0-1

[Event "World Team-ch Women 2019"]
[Site "Astana"]
[Date "2019.03.09"]
[Round "5.15"]
[White "Tania, Sachdev"]
[Black "Elansary, Eman"]
[Result "1-0"]
[ECO "D16"]
[WhiteElo "2400"]
[BlackElo "1944"]
[Annotator "NA"]
[PlyCount "103"]
[EventDate "2019.02.05"]
[EventType "team-tourn"]
[EventCountry "KAZ"]
[SourceTitle "playchess.com"]
[Source "ChessBase"]
[SourceQuality "1"]
[WhiteTeam "India"]
[BlackTeam "Egypt"]
[WhiteTeamCountry "IND"]
[BlackTeamCountry "EGY"]
[TimeControl "40/5400+30:1800+30"]

1. d4 {[%emt 0:00:00]} Nf6 {[%emt 0:00:00]} 2. c4 {[%emt 0:00:00]} c6 {[%emt 0:00:11]} 3. Nf3 {[%emt 0:00:09]} d5 {[%emt 0:00:24]} 4. Nc3 {[%emt 0:00:15]} dxc4 {[%emt 0:01:08]} 5. a4 {[%emt 0:00:10]} Qa5 {[%emt 0:02:48]} 6. Bd2 {[%emt 0:11:32]} Na6 {[%emt 0:11:19]} 7. e4 {[%emt 0:03:59]} Bg4 {[%emt 0:06:10]} 8. Bxc4 {[%emt 0:06:57]} e6 {[%emt 0:05:51]} 9. O-O {[%emt 0:16:31]} Bb4 {[%emt 0:09:23]} 10. h3 {[%emt 0:10:22]} Bh5 {[%emt 0:11:20]} 11. e5 $14 {[%emt 0:13:03]} Nd5 {[%emt 0:05:18]} 12. Nxd5 {[%emt 0:07:10]} Bxd2 {[%emt 0:14:24]} 13. Qxd2 {[%emt 0:11:14]} Qxd2 {[%emt 0:02:00]} 14. Nf6+ {[%emt 0:04:05]} gxf6 {[%emt 0:00:34]} 15. Nxd2 {[%emt 0:00:05]} fxe5 {[%emt 0:02:23]} 16. Ne4 {[%emt 0:01:52]} O-O-O {[%emt 0:01:05]} 17. Bxa6 {[%emt 0:01:17]} bxa6 {[%emt 0:00:22]} 18. dxe5 {[%emt 0:00:31]} Rd5 {[%emt 0:02:31]} 19. Rfe1 {[%emt 0:02:26]} Bg6 {[%emt 0:00:38]} 20. Rac1 {[%emt 0:02:40]} Bxe4 {[%emt 0:02:47]} 21. Rxe4 {[%emt 0:00:05]} Kd7 {[%emt 0:00:31]} 22. Rb4 {[%emt 0:04:04]} Rc8 {[%emt 0:02:21]} 23. Rf4 {[%emt 0:01:15]} Ke7 {[%emt 0:00:34]} 24. Rfc4 {[%emt 0:00:25]} c5 {[%emt 0:04:56]} 25. f4 {[%emt 0:01:02]} a5 {[%emt 0:00:07]} 26. R1c2 {[%emt 0:00:45]} h5 {[%emt 0:00:38]} 27. Kf2 {[%emt 0:00:18]} Kd7 {[%emt 0:00:32]} 28. Kg3 {[%emt 0:00:17]} Ke7 {[%emt 0:06:17]} 29. Kh4 {[%emt 0:00:14]} f6 {[%emt 0:01:04]} 30. Kxh5 {[%emt 0:01:27]} fxe5 {[%emt 0:00:13]} 31. fxe5 {[%emt 0:00:19]} Rxe5+ {[%emt 0:00:26]} 32. Kg4 {[%emt 0:00:04]} Rg8+ {[%emt 0:00:39]} 33. Kf3 {[%emt 0:00:05]} Rf5+ {[%emt 0:01:05]} 34. Rf4 {[%emt 0:00:34]} Rd5 {[%emt 0:02:26]} 35. Kf2 {[%emt 0:01:33]} Rgd8 {[%emt 0:02:51]} 36. Rfc4 {[%emt 0:00:24]} Rf5+ {[%emt 0:00:38]} 37. Ke3 {[%emt 0:00:34]} Rdd5 {[%emt 0:00:32]} 38. g4 {[%emt 0:00:34]} Rfe5+ {[%emt 0:01:28]} 39. Re4 {[%emt 0:00:07]} Rg5 {[%emt 0:00:24]} 40. h4 {[%emt 0:00:00]} Rg8 {[%emt 0:00:00]} 41. h5 {[%emt 0:10:44]} Rh8 {[%emt 0:02:09]} 42. Kf4 {[%emt 0:01:58]} Rf8+ {[%emt 0:00:44]} 43. Kg3 {[%emt 0:00:35]} Rd4 {[%emt 0:09:35]} 44. Rce2 {[%emt 0:01:54]} Rxe4 {[%emt 0:04:58]} 45. Rxe4 {[%emt 0:00:01]} Kd6 {[%emt 0:00:20]} 46. h6 {[%emt 0:02:12]} Kd5 {[%emt 0:01:32]} 47. Rf4 {[%emt 0:02:23]} Re8 {[%emt 0:09:14]} 48. g5 {[%emt 0:07:47]} e5 {[%emt 0:01:07]} 49. Rh4 {[%emt 0:01:26]} Ke6 {[%emt 0:00:20]} 50. g6 {[%emt 0:03:04]} Kf6 {[%emt 0:00:31]} 51. Rg4 {[%emt 0:00:16]} e4 {[%emt 0:01:47]} 52. g7 {[%emt 0:00:16]} 1-0

[Event "World Team-ch Women 2019"]
[Site "Astana"]
[Date "2019.03.09"]
[Round "5.16"]
[White "Ehab, Tasneem"]
[Black "Kulkarni Bhakti"]
[Result "0-1"]
[ECO "A45"]
[WhiteElo "1841"]
[BlackElo "2322"]
[Annotator "NA"]
[PlyCount "126"]
[EventDate "2019.02.05"]
[EventType "team-tourn"]
[EventCountry "KAZ"]
[SourceTitle "playchess.com"]
[Source "ChessBase"]
[SourceQuality "1"]
[WhiteTeam "Egypt"]
[BlackTeam "India"]
[WhiteTeamCountry "EGY"]
[BlackTeamCountry "IND"]
[TimeControl "40/5400+30:1800+30"]

1. d4 {[%emt 0:00:00]} Nf6 {[%emt 0:00:00]} 2. Bf4 {[%emt 0:00:00]} e6 {[%emt 0:00:00]} 3. e3 {[%emt 0:00:00]} d5 {[%emt 0:00:25]} 4. Nf3 {[%emt 0:00:00]} Bd6 {[%emt 0:00:16]} 5. Bg3 {[%emt 0:00:59]} O-O {[%emt 0:00:31]} 6. Bd3 {[%emt 0:00:20]} b6 {[%emt 0:00:32]} 7. a4 $146 {[%emt 0:01:12] D02: 1 d4 d5 2 Nf3 sidelines, including 2...Nf6 3 g3 and 2...Nf6 3 Bf4} ({Predecessor:} 7. Nbd2 Bb7 8. Bh4 Nbd7 9. O-O c5 10. c3 Qb8 11. Qb1 a5 12. Re1 h6 13. a4 Bc6 14. Bg3 Bxg3 15. hxg3 {½-½ (87) Demidov,M (2520)-Van Foreest,J (2614) St Petersburg 2018}) 7... c5 {[%emt 0:01:32]} 8. c3 {[%emt 0:01:25]} Qc7 {[%emt 0:02:10]} 9. Bxd6 {[%emt 0:01:59]} Qxd6 {[%emt 0:00:04]} 10. Ne5 {[%emt 0:00:29]} Ba6 {[%emt 0:01:42]} 11. O-O {[%emt 0:01:58]} Bxd3 {[%emt 0:00:19]} 12. Qxd3 {[%emt 0:00:43]} Nc6 {[%emt 0:01:54]} 13. f4 {[%emt 0:01:06]} Ne4 {[%emt 0:07:18]} 14. Nd2 {[%emt 0:01:12]} Nxd2 {[%emt 0:01:14]} 15. Qxd2 {[%emt 0:00:09]} Na5 {[%emt 0:00:39]} 16. Qc2 {[%emt 0:05:19]} f6 {[%emt 0:01:08]} 17. Ng4 {[%emt 0:01:35]} Rac8 {[%emt 0:00:48]} 18. Rf3 {[%emt 0:01:09]} Nc6 {[%emt 0:02:21]} 19. Qd3 {[%emt 0:02:37]} Rc7 {[%emt 0:10:19]} 20. Rh3 {[%emt 0:03:09]} f5 {[%emt 0:04:29]} 21. Ne5 {[%emt 0:01:46]} Nxe5 {[%emt 0:03:43]} 22. fxe5 {[%emt 0:00:25]} Qd7 {[%emt 0:00:26]} 23. Qc2 {[%emt 0:04:31]} g6 {[%emt 0:01:56]} 24. Rf3 {[%emt 0:02:28]} Rfc8 {[%emt 0:02:00]} 25. h4 {[%emt 0:01:40]} Qe7 {[%emt 0:04:33]} 26. Qf2 {[%emt 0:01:02]} cxd4 {[%emt 0:01:09]} 27. exd4 {[%emt 0:00:24]} Rc4 {[%emt 0:00:30]} 28. Qg3 {[%emt 0:04:51]} Kg7 {[%emt 0:06:04]} 29. h5 {[%emt 0:04:10]} g5 {[%emt 0:00:45]} 30. Qf2 {[%emt 0:10:31] [#]} g4 $1 {[%emt 0:01:50]} 31. Rf4 $17 {[%emt 0:15:44]} Qg5 {[%emt 0:00:44]} 32. g3 {[%emt 0:01:19]} Qxh5 {[%emt 0:00:52]} 33. Qg2 {[%emt 0:01:37]} Qe8 {[%emt 0:01:18]} 34. Qf2 {[%emt 0:06:36]} R8c7 {[%emt 0:08:25]} 35. Kg2 {[%emt 0:08:42]} Kg8 {[%emt 0:02:31]} 36. Qc2 {[%emt 0:03:05]} h5 {[%emt 0:01:24]} 37. Qb3 {[%emt 0:01:12]} Rh7 {[%emt 0:04:37]} 38. Qb5 {[%emt 0:02:50]} Qc6 {[%emt 0:05:49]} 39. Rc1 {[%emt 0:05:54]} h4 {[%emt 0:02:53]} 40. gxh4 {[%emt 0:00:00]} Rxh4 {[%emt 0:00:00]} 41. Rh1 {[%emt 0:05:40]} Rxh1 {[%emt 0:02:34]} 42. Kxh1 {[%emt 0:00:03]} Qxb5 {[%emt 0:01:40]} 43. axb5 {[%emt 0:00:06]} Kg7 {[%emt 0:00:34]} 44. Rf2 {[%emt 0:01:24]} Kg6 {[%emt 0:01:29]} 45. Kg2 {[%emt 0:02:05]} Kg5 {[%emt 0:00:20]} 46. Rc2 {[%emt 0:04:50]} Kf4 {[%emt 0:01:33]} 47. b3 {[%emt 0:00:20]} Rc7 {[%emt 0:00:25]} 48. c4 {[%emt 0:02:13]} Ke3 {[%emt 0:00:26]} 49. Kg3 {[%emt 0:16:36]} Kxd4 {[%emt 0:01:16]} 50. Kf4 {[%emt 0:02:20]} dxc4 {[%emt 0:01:31]} 51. Rd2+ {[%emt 0:02:44]} Kc3 {[%emt 0:00:30]} 52. Rd6 {[%emt 0:00:33]} Kxb3 {[%emt 0:01:39]} 53. Rc6 {[%emt 0:01:35]} Re7 {[%emt 0:00:15]} 54. Kg5 {[%emt 0:01:00]} g3 {[%emt 0:00:18]} 55. Kf6 {[%emt 0:00:15]} Re8 {[%emt 0:00:38]} 56. Kf7 {[%emt 0:00:28]} g2 {[%emt 0:00:20]} 57. Kxe8 {[%emt 0:00:13]} g1=Q {[%emt 0:00:08]} 58. Rxe6 {[%emt 0:00:21]} c3 {[%emt 0:00:22]} 59. Rc6 {[%emt 0:00:09]} c2 {[%emt 0:00:06]} 60. e6 {[%emt 0:00:11]} c1=Q {[%emt 0:00:12]} 61. Rxc1 {[%emt 0:00:13]} Qxc1 {[%emt 0:00:08]} 62. e7 {[%emt 0:00:06]} f4 {[%emt 0:00:12]} 63. Kf7 {[%emt 0:00:12]} Qe3 {[%emt 0:00:12]} 0-1

[Event "World Team-ch Women 2019"]
[Site "Astana"]
[Date "2019.03.09"]
[Round "5.17"]
[White "Abrahamyan, Tatev"]
[Black "Danielian, Elina"]
[Result "1-0"]
[ECO "C01"]
[WhiteElo "2377"]
[BlackElo "2402"]
[Annotator "NA"]
[PlyCount "59"]
[EventDate "2019.02.05"]
[EventType "team-tourn"]
[EventCountry "KAZ"]
[SourceTitle "playchess.com"]
[Source "ChessBase"]
[SourceQuality "1"]
[WhiteTeam "United States"]
[BlackTeam "Armenia"]
[WhiteTeamCountry "USA"]
[BlackTeamCountry "ARM"]
[TimeControl "40/5400+30:1800+30"]

1. e4 {[%emt 0:00:00]} e6 {[%emt 0:00:00]} 2. d4 {[%emt 0:00:00]} d5 {[%emt 0:00:00]} 3. Nc3 {[%emt 0:00:00]} Nf6 {[%emt 0:00:00]} 4. exd5 {[%emt 0:00:00]} exd5 {[%emt 0:00:13]} 5. Bg5 {[%emt 0:00:00]} Be7 {[%emt 0:02:28]} 6. Qd2 {[%emt 0:00:16]} c6 {[%emt 0:13:36]} 7. O-O-O {[%emt 0:03:02]} Nbd7 {[%emt 0:02:23]} 8. Re1 {[%emt 0:09:29]} O-O {[%emt 0:00:53]} 9. h4 {[%emt 0:00:54]} Re8 {[%emt 0:08:31]} 10. Bd3 {[%emt 0:04:58]} b5 {[%emt 0:07:06]} 11. Nf3 {[%emt 0:12:59]} b4 {[%emt 0:00:41]} 12. Na4 {[%emt 0:11:01]} Qa5 {[%emt 0:29:15]} 13. b3 {[%emt 0:02:55]} Bb7 {[%emt 0:00:23] [#]} 14. Ne5 $16 {[%emt 0:10:59]} Bf8 {[%emt 0:04:24]} 15. Nxd7 {[%emt 0:09:52]} Nxd7 {[%emt 0:01:22]} 16. Qf4 {[%emt 0:00:06]} Rxe1+ {[%emt 0:16:33]} 17. Rxe1 {[%emt 0:00:07]} Ba6 {[%emt 0:01:34]} 18. Bxh7+ {[%emt 0:13:07]} Kxh7 {[%emt 0:00:04]} 19. Qf5+ {[%emt 0:00:37]} Kg8 {[%emt 0:00:05]} 20. Qxd7 {[%emt 0:00:11]} Bb5 {[%emt 0:02:57]} 21. Qb7 {[%emt 0:04:15]} Rd8 {[%emt 0:03:07]} 22. Bxd8 {[%emt 0:01:26]} Qxd8 {[%emt 0:00:01]} 23. Qxa7 {[%emt 0:00:17]} Qxh4 {[%emt 0:00:32]} 24. Re8 {[%emt 0:03:33]} Bxa4 {[%emt 0:04:50]} 25. bxa4 {[%emt 0:02:20]} Qxf2 {[%emt 0:00:40]} 26. Qc5 {[%emt 0:00:55]} Kh7 {[%emt 0:00:03]} 27. Rxf8 {[%emt 0:01:07]} Qe3+ {[%emt 0:00:15]} 28. Kb1 {[%emt 0:00:41]} Qe1+ {[%emt 0:01:27]} 29. Kb2 {[%emt 0:00:13]} f6 {[%emt 0:00:33]} 30. a5 {[%emt 0:00:45]} 1-0

[Event "World Team-ch Women 2019"]
[Site "Astana"]
[Date "2019.03.09"]
[Round "5.18"]
[White "Mkrtchian, Lilit"]
[Black "Nemcova, Katerina"]
[Result "0-1"]
[ECO "D20"]
[WhiteElo "2390"]
[BlackElo "2315"]
[Annotator "NA"]
[PlyCount "84"]
[EventDate "2019.02.05"]
[EventType "team-tourn"]
[EventCountry "KAZ"]
[SourceTitle "playchess.com"]
[Source "ChessBase"]
[SourceQuality "1"]
[WhiteTeam "Armenia"]
[BlackTeam "United States"]
[WhiteTeamCountry "ARM"]
[BlackTeamCountry "USA"]
[TimeControl "40/5400+30:1800+30"]

1. d4 {[%emt 0:00:00]} d5 {[%emt 0:00:00]} 2. c4 {[%emt 0:00:10]} dxc4 {[%emt 0:00:00]} 3. e4 {[%emt 0:00:42]} Nf6 {[%emt 0:00:03]} 4. e5 {[%emt 0:00:27]} Nd5 {[%emt 0:00:09]} 5. Bxc4 {[%emt 0:00:09]} Bf5 {[%emt 0:00:18]} 6. Ne2 {[%emt 0:12:34]} e6 {[%emt 0:00:41]} 7. O-O {[%emt 0:01:16]} Nb6 {[%emt 0:02:05]} 8. Bb3 {[%emt 0:01:25]} Nc6 {[%emt 0:01:42]} 9. Nbc3 {[%emt 0:01:11]} Be7 {[%emt 0:03:03]} 10. a3 {[%emt 0:07:26]} Qd7 {[%emt 0:10:10]} 11. Be3 {[%emt 0:02:09]} Rd8 {[%emt 0:12:16]} 12. Rc1 {[%emt 0:04:15]} O-O {[%emt 0:00:51]} 13. Ba2 {[%emt 0:15:27]} Qc8 {[%emt 0:10:32]} 14. Ng3 {[%emt 0:19:14]} Nxe5 {[%emt 0:19:03]} 15. Nxf5 {[%emt 0:00:17]} exf5 {[%emt 0:00:08]} 16. Nb5 $17 {[%emt 0:05:43]} ({White should play} 16. Qc2 $15 Ng6 17. Bb1) 16... c6 {[%emt 0:08:35]} 17. Nxa7 {[%emt 0:05:10]} Qa8 {[%emt 0:01:03]} 18. Qb3 {[%emt 0:20:37]} Ned7 {[%emt 0:04:24]} 19. d5 {[%emt 0:00:04]} Nxd5 {[%emt 0:01:32]} 20. Nb5 {[%emt 0:00:24]} Nxe3 {[%emt 0:09:51]} 21. Qxe3 {[%emt 0:00:11]} Bc5 {[%emt 0:00:31]} 22. Rxc5 {[%emt 0:01:03]} Nxc5 {[%emt 0:00:04]} 23. Qxc5 {[%emt 0:01:00]} cxb5 {[%emt 0:00:04]} 24. Qxb5 {[%emt 0:00:31]} Qc8 {[%emt 0:00:14]} 25. h3 {[%emt 0:00:32]} Rfe8 {[%emt 0:00:58]} 26. a4 {[%emt 0:00:30]} g6 {[%emt 0:01:29]} 27. Bc4 {[%emt 0:00:10]} Re4 {[%emt 0:02:00]} 28. b3 {[%emt 0:00:04]} Qc7 {[%emt 0:01:46]} 29. Rc1 {[%emt 0:01:02]} Qe7 {[%emt 0:00:14]} 30. Bf1 {[%emt 0:00:14]} Rb4 {[%emt 0:04:32]} 31. Qa5 {[%emt 0:00:34]} b6 {[%emt 0:00:37]} 32. Rc7 {[%emt 0:00:21]} bxa5 {[%emt 0:01:12]} 33. Rxe7 {[%emt 0:00:03]} Rd1 {[%emt 0:01:25]} 34. g3 {[%emt 0:01:01]} Rxb3 {[%emt 0:02:40]} 35. Kg2 {[%emt 0:00:03]} Rb4 {[%emt 0:00:44]} 36. Bb5 {[%emt 0:00:13]} Rd2 {[%emt 0:00:28]} 37. Ra7 {[%emt 0:00:13]} Rbb2 {[%emt 0:00:20]} 38. Kf3 {[%emt 0:00:06]} Rxf2+ {[%emt 0:00:50]} 39. Ke3 {[%emt 0:00:06]} Rg2 {[%emt 0:01:25]} 40. Kf3 {[%emt 0:00:00]} Rgc2 {[%emt 0:00:00]} 41. Rxa5 {[%emt 0:02:26]} Rc3+ {[%emt 0:02:17]} 42. Kf4 {[%emt 0:00:06]} f6 {[%emt 0:00:12] Ke5} 0-1

[Event "World Team-ch Women 2019"]
[Site "Astana"]
[Date "2019.03.09"]
[Round "5.19"]
[White "Yip, Carissa"]
[Black "Sargsyan, Anna M."]
[Result "1-0"]
[ECO "B18"]
[WhiteElo "2279"]
[BlackElo "2340"]
[Annotator "NA"]
[PlyCount "109"]
[EventDate "2019.02.05"]
[EventType "team-tourn"]
[EventCountry "KAZ"]
[SourceTitle "playchess.com"]
[Source "ChessBase"]
[SourceQuality "1"]
[WhiteTeam "United States"]
[BlackTeam "Armenia"]
[WhiteTeamCountry "USA"]
[BlackTeamCountry "ARM"]
[TimeControl "40/5400+30:1800+30"]

1. e4 {[%emt 0:00:00]} c6 {[%emt 0:00:00]} 2. d4 {[%emt 0:00:00]} d5 {[%emt 0:00:00]} 3. Nc3 {[%emt 0:00:00]} dxe4 {[%emt 0:00:00]} 4. Nxe4 {[%emt 0:00:00]} Bf5 {[%emt 0:00:00]} 5. Ng3 {[%emt 0:00:00]} Bg6 {[%emt 0:00:01]} 6. f4 {[%emt 0:00:12]} e6 {[%emt 0:00:17]} 7. Nf3 {[%emt 0:00:05]} Nf6 {[%emt 0:02:47]} 8. Bd3 {[%emt 0:00:32]} c5 {[%emt 0:11:06]} 9. O-O {[%emt 0:04:30]} Bxd3 {[%emt 0:02:23]} 10. Qxd3 {[%emt 0:00:06]} Nc6 {[%emt 0:00:11]} 11. Be3 {[%emt 0:20:39]} Ng4 {[%emt 0:16:17]} 12. f5 {[%emt 0:12:43]} Nxe3 {[%emt 0:02:38]} 13. Qxe3 {[%emt 0:00:05]} cxd4 {[%emt 0:02:13]} 14. Qe4 {[%emt 0:11:51]} Be7 {[%emt 0:22:38]} 15. fxe6 {[%emt 0:02:39]} O-O {[%emt 0:00:26]} 16. Rad1 $11 {[%emt 0:05:21]} Qb6 {[%emt 0:08:03]} 17. Kh1 {[%emt 0:03:07]} Bf6 {[%emt 0:07:24]} 18. exf7+ {[%emt 0:01:34]} Rxf7 {[%emt 0:00:15]} 19. Ng5 {[%emt 0:02:37]} Bxg5 {[%emt 0:04:20]} 20. Rxf7 {[%emt 0:00:02]} Kxf7 {[%emt 0:00:17]} 21. Qd5+ {[%emt 0:00:02]} Kf8 {[%emt 0:00:59]} 22. Qxg5 {[%emt 0:00:04]} Qd8 {[%emt 0:07:05]} 23. Qb5 {[%emt 0:01:04]} Qd7 {[%emt 0:02:44]} 24. Qc4 {[%emt 0:01:49]} g6 {[%emt 0:02:10]} 25. Ne4 {[%emt 0:00:24]} Kg7 {[%emt 0:02:07]} 26. Nc5 {[%emt 0:01:27]} Qf7 {[%emt 0:00:12]} 27. Ne6+ {[%emt 0:06:40]} Kg8 {[%emt 0:02:24]} 28. Rf1 {[%emt 0:07:54]} Ne5 {[%emt 0:00:30]} 29. Rxf7 {[%emt 0:00:06]} Nxc4 {[%emt 0:00:03]} 30. Rg7+ {[%emt 0:00:07]} Kh8 {[%emt 0:00:05]} 31. Re7 {[%emt 0:01:31]} Nxb2 {[%emt 0:00:40]} 32. h3 {[%emt 0:00:43]} d3 {[%emt 0:01:25]} 33. cxd3 {[%emt 0:00:23]} Nxd3 {[%emt 0:00:06]} 34. Ng5 {[%emt 0:01:06]} h6 {[%emt 0:01:41]} 35. Rh7+ {[%emt 0:06:09]} Kg8 {[%emt 0:00:02]} 36. Rxh6 {[%emt 0:00:01]} Kg7 {[%emt 0:01:46]} 37. Rh7+ {[%emt 0:00:04]} Kf6 {[%emt 0:00:04]} 38. Ne4+ {[%emt 0:00:08]} Ke5 {[%emt 0:01:06]} 39. Re7+ {[%emt 0:00:07]} Kd5 {[%emt 0:01:39]} 40. Nf6+ {[%emt 0:00:00]} Kc6 {[%emt 0:00:00]} 41. Re6+ {[%emt 0:01:03]} Kc5 {[%emt 0:02:36]} 42. Nd7+ {[%emt 0:01:13]} Kc4 {[%emt 0:00:08]} 43. Rxg6 {[%emt 0:00:19]} b5 {[%emt 0:00:13]} 44. h4 {[%emt 0:02:49]} Rh8 {[%emt 0:00:39]} 45. g3 {[%emt 0:00:18]} a5 {[%emt 0:00:22]} 46. Rc6+ {[%emt 0:01:39]} Kd4 {[%emt 0:04:21]} 47. Rd6+ {[%emt 0:03:24]} Kc3 {[%emt 0:00:34]} 48. Rd5 {[%emt 0:01:06]} Rh7 {[%emt 0:04:48]} 49. Ne5 {[%emt 0:04:30]} Nxe5 {[%emt 0:15:11]} 50. Rxe5 {[%emt 0:00:42]} Kc4 {[%emt 0:00:55]} 51. h5 {[%emt 0:01:36]} a4 {[%emt 0:00:05]} 52. g4 {[%emt 0:00:44]} b4 {[%emt 0:00:02]} 53. Kg2 {[%emt 0:04:30]} b3 {[%emt 0:01:04]} 54. axb3+ {[%emt 0:00:07]} axb3 {[%emt 0:00:01]} 55. Kg3 {[%emt 0:01:36] Kd5} 1-0

[Event "World Team-ch Women 2019"]
[Site "Astana"]
[Date "2019.03.09"]
[Round "5.20"]
[White "Gevorgyan, Maria"]
[Black "Foisor, Sabina-Francesca"]
[Result "1-0"]
[ECO "B23"]
[WhiteElo "2264"]
[BlackElo "2276"]
[Annotator "NA"]
[PlyCount "85"]
[EventDate "2019.02.05"]
[EventType "team-tourn"]
[EventCountry "KAZ"]
[SourceTitle "playchess.com"]
[Source "ChessBase"]
[SourceQuality "1"]
[WhiteTeam "Armenia"]
[BlackTeam "United States"]
[WhiteTeamCountry "ARM"]
[BlackTeamCountry "USA"]
[TimeControl "40/5400+30:1800+30"]

1. e4 {[%emt 0:00:00]} c5 {[%emt 0:00:00]} 2. Nc3 {[%emt 0:00:00]} e6 {[%emt 0:00:04]} 3. f4 {[%emt 0:00:44]} d5 {[%emt 0:00:26]} 4. Bb5+ {[%emt 0:02:03]} Bd7 {[%emt 0:05:17]} 5. exd5 {[%emt 0:05:19]} Bxb5 {[%emt 0:04:36]} 6. Nxb5 {[%emt 0:00:06]} a6 {[%emt 0:03:02]} 7. Nc3 {[%emt 0:11:12]} exd5 {[%emt 0:00:13]} 8. Nf3 {[%emt 0:05:36]} Nf6 {[%emt 0:04:01]} 9. O-O {[%emt 0:00:06]} Be7 {[%emt 0:00:18]} 10. d3 {[%emt 0:00:08]} Nc6 {[%emt 0:01:46]} 11. Ne2 {[%emt 0:06:12]} d4 {[%emt 0:04:08]} 12. Ng3 {[%emt 0:00:41]} O-O {[%emt 0:05:09]} 13. Ng5 $15 {[%emt 0:06:51]} Qd7 {[%emt 0:10:13]} 14. f5 {[%emt 0:12:59]} Nb4 {[%emt 0:07:07]} 15. Bd2 {[%emt 0:05:38]} Nbd5 {[%emt 0:00:56]} 16. Qf3 {[%emt 0:00:38]} b5 {[%emt 0:08:36]} 17. Rae1 {[%emt 0:00:39]} c4 {[%emt 0:03:15]} 18. N5e4 {[%emt 0:11:49]} Rac8 {[%emt 0:07:38]} 19. Nxf6+ {[%emt 0:02:44]} Bxf6 {[%emt 0:03:25]} 20. Nh5 {[%emt 0:03:09]} Rc6 {[%emt 0:04:44]} 21. Re4 {[%emt 0:01:50]} c3 {[%emt 0:02:33]} 22. bxc3 {[%emt 0:00:59]} dxc3 {[%emt 0:00:22]} 23. Bc1 {[%emt 0:00:17]} Bd8 {[%emt 0:05:44]} 24. Ba3 {[%emt 0:05:11]} b4 {[%emt 0:03:30]} 25. Bxb4 {[%emt 0:00:12]} Nxb4 {[%emt 0:00:03]} 26. Rxb4 {[%emt 0:00:04]} Rh6 {[%emt 0:01:35]} 27. Qg4 {[%emt 0:02:25]} g6 {[%emt 0:01:16]} 28. Nf4 {[%emt 0:00:31]} Rh4 {[%emt 0:01:15]} 29. Qe2 {[%emt 0:03:41]} Qxf5 {[%emt 0:00:18]} 30. Re4 {[%emt 0:00:46]} Bb6+ {[%emt 0:03:05]} 31. Kh1 {[%emt 0:00:23]} Qg5 {[%emt 0:02:58]} 32. Qf3 {[%emt 0:01:59]} Qh6 {[%emt 0:01:16]} 33. h3 {[%emt 0:00:44]} g5 {[%emt 0:03:41]} 34. Nd5 {[%emt 0:01:11]} Bd4 {[%emt 0:00:52]} 35. Ne7+ {[%emt 0:00:22]} Kh8 {[%emt 0:00:09]} 36. Nf5 {[%emt 0:00:21]} Qb6 {[%emt 0:02:29]} 37. Nxd4 {[%emt 0:02:38]} Rh6 {[%emt 0:00:14]} 38. Qf5 {[%emt 0:01:08]} Rg6 {[%emt 0:00:45]} 39. Qd5 {[%emt 0:00:52]} f6 {[%emt 0:01:45]} 40. Rfe1 {[%emt 0:00:00]} Rgg8 {[%emt 0:00:00]} 41. Re7 {[%emt 0:01:41]} Rg7 {[%emt 0:04:22]} 42. Rxg7 {[%emt 0:00:43]} Kxg7 {[%emt 0:00:01]} 43. Ne6+ {[%emt 0:00:06]} 1-0